[Event "Serbian-ch Semifinal 2024"]
[Site "Paracin"]
[Date "2024.02.07"]
[Round "4.3"]
[White "Pap, Misa"]
[Black "Ratkovic, Milovan"]
[Result "1/2-1/2"]
[ECO "B51"]
[WhiteElo "2422"]
[BlackElo "2396"]
[Annotator "TA"]
[PlyCount "88"]
[EventDate "2024.02.04"]
[EventType "swiss"]
[EventCountry "SRB"]
[SourceTitle "playchess.com"]
[Source "ChessBase"]
[SourceQuality "1"]
[TimeControl "40/5400+30:1800+30"]

{[%evp 13,88,24,30,21,47,30,53,37,58,50,52,48,51,37,41,53,54,34,38,22,29,29,46,43,52,41,81,89,82,89,93,46,37,52,49,0,0,0,0,0,0,0,61,0,0,0,0,0,0,0,0,0,0,0,0,-6,0,0,0,0,0,0,0,0,0,0,0,0,0,0,0,0,0,0,0,0,0]} 1. e4 {[%emt 0:05:59]} c5 {[%emt 0:00:34]} 2. Nf3 {[%emt 0:00:40]} d6 {[%emt 0:00:17]} 3. Bb5+ {[%emt 0:00:11]} Nd7 {[%emt 0:01:04]} 4. d4 {[%emt 0:00:08]} Ngf6 {[%emt 0:01:14][%cal Bg8f6,Bf6d7,Bd7f8,Bf8g6][%mdl 32]} 5. Nc3 {[%emt 0:00:07]} a6 {[%emt 0:01:17]} 6. Bxd7+ {[%emt 0:00:07]} Nxd7 {[%emt 0:00:15]} 7. O-O {[%emt 0:01:17]} e6 {[%emt 0:01:48]} 8. d5 {[%emt 0:01:07]} e5 {[%emt 0:12:47]} 9. a4 {[%emt 0:00:24][%cal Ba2a4,Ba4a5][%mdl 32]} Be7 {[%emt 0:00:43]} 10. Nd2 {[%emt 0:05:41][%cal Bf3d2,Bd2c4,Bc4b6][%mdl 32] White is slightly better.} Nf8 {[%emt 0:08:15]} 11. Nc4 {[%emt 0:04:38]} Ng6 {[%emt 0:01:01]} 12. a5 {[%emt 0:02:41]} O-O {[%emt 0:05:25]} 13. Na4 {[%emt 0:03:05]} f5 {[%emt 0:09:38]} 14. Nab6 {[%emt 0:00:10]} Rb8 {[%emt 0:00:42]} 15. Nxc8 {[%emt 0:24:24]} Qxc8 {[%emt 0:01:52]} 16. Nb6 {[%emt 0:17:23]} Qe8 {[%emt 0:04:17]} 17. Qe2 {[%emt 0:02:45]} h6 {[%emt 0:10:48]} 18. g3 {[%emt 0:04:33]} Rd8 {[%emt 0:08:03]} 19. Ra3 {[%emt 0:02:36]} Bg5 {[%emt 0:03:37]} 20. Bxg5 {[%emt 0:01:18]} hxg5 {[%emt 0:00:05]} 21. exf5 {[%emt 0:04:37]} Rxf5 {[%emt 0:00:19]} 22. Rf3 {[%emt 0:02:36]} ({Better is} 22. Rb3 $16) 22... Rxf3 $14 {[%emt 0:09:37]} 23. Qxf3 {[%emt 0:00:01]} e4 {[%emt 0:00:31]} 24. Qf5 {[%emt 0:00:27]} (24. Qh5 $1 $14 {is superior.}) 24... Ne5 $1 $11 {[%emt 0:01:50]} 25. Qxe4 {[%emt 0:03:23]} g4 $36 {[%emt 0:00:21][%mdl 2048] Hoping for ...Nf3+. Black is more active.} 26. Kh1 {[%emt 0:02:20]} Qb5 {[%emt 0:01:06] Inhibits Nc4.} 27. Kg2 {[%emt 0:02:36]} c4 {[%emt 0:09:07] [#]} ({Black should play} 27... Qxa5 $11 28. Nc4 Nxc4 29. Qxc4 Qd2) 28. b3 {[%emt 0:02:14]} cxb3 {[%emt 0:00:24] The position is equal.} 29. cxb3 {[%emt 0:00:03]} Qxb3 {[%emt 0:00:49]} 30. h3 {[%emt 0:01:04]} gxh3+ {[%emt 0:02:53]} 31. Kxh3 {[%emt 0:00:23]} Qb5 {[%emt 0:00:34][%csl LRa5,LRf1]} 32. Rb1 {[%emt 0:01:02]} Qxa5 {[%emt 0:01:32]} 33. f4 {[%emt 0:00:15]} Nf7 {[%emt 0:00:26]} 34. Qe7 {[%emt 0:04:23]} Qd2 {[%emt 0:01:12]} 35. Qe6 {[%emt 0:01:43]} Qc2 {[%emt 0:01:18] Prevents Nc8.} 36. Rb4 {[%emt 0:00:34]} Qd1 {[%emt 0:01:33]} 37. Rc4 {[%emt 0:01:25] Active counter play!} Qh1+ {[%emt 0:00:42]} 38. Kg4 {[%emt 0:00:01]} Qd1+ {[%emt 0:00:03]} 39. Kh4 {[%emt 0:00:36]} Qh1+ {[%emt 0:00:54]} 40. Kg4 {[%emt 0:00:41]} Qd1+ {[%emt 0:00:52]} 41. Kh3 {[%emt 0:02:43]} Qh1+ {[%emt 0:20:09]} 42. Kg4 {[%emt 0:00:05]} Qd1+ {[%emt 0:01:49]} 43. Kh3 {[%emt 0:00:11]} Qh1+ {[%emt 0:00:05]} 44. Kg4 {[%emt 0:00:03]} Qd1+ {[%emt 0:10:42] Weighted Error Value: White=0.08 (flawless) /Black=0.06 (flawless) .  Mistake:       	White=3     	Black=1      Inaccurate:     	---       	Black=2      OK:         	White=17    	Black=9      Best:        	White=1     	Black=2      Strong:       	---       	Black=1} 1/2-1/2

[Event "Serbian-ch Semifinal 2024"]
[Site "Paracin"]
[Date "2024.02.07"]
[Round "4.4"]
[White "Ivanisevic, Ivan"]
[Black "Ivanovic, Marko"]
[Result "*"]
[ECO "D30"]
[WhiteElo "2517"]
[BlackElo "2245"]
[Annotator "TA"]
[PlyCount "64"]
[EventDate "2024.02.04"]
[EventType "swiss"]
[EventCountry "SRB"]
[SourceTitle "playchess.com"]
[Source "ChessBase"]
[SourceQuality "1"]
[TimeControl "40/5400+30:1800+30"]

{[%evp 9,64,4,43,2,10,8,18,15,14,12,23,21,22,15,24,28,29,5,27,19,21,9,8,0,0,0,0,10,8,5,0,7,6,0,-18,0,0,-19,11,-52,0,0,44,-5,20,18,51,5,20,22,39,43,41,47,41,37,78]} 1. d4 {[%emt 0:02:56]} d5 {[%emt 0:05:38]} 2. c4 {[%emt 0:00:07]} e6 {[%emt 0:00:06]} 3. Nf3 {[%emt 0:00:57]} a6 {[%emt 0:00:48]} 4. e3 {[%emt 0:02:56]} Nf6 {[%emt 0:00:30]} 5. Nc3 {[%emt 0:01:46]} Bd6 {[%emt 0:13:57]} 6. b3 {[%emt 0:11:52]} O-O {[%emt 1:12:31]} 7. Bb2 {[%emt 0:00:53]} b6 {[%emt 0:00:27]} 8. g3 {[%emt 0:05:07] The position is equal.} Bb7 {[%emt 1:11:55]} 9. Bg2 {[%emt 0:00:04]} Nbd7 {[%emt 0:00:00]} 10. O-O {[%emt 0:00:10]} Qe7 {[%emt 0:00:00]} 11. Rc1 {[%emt 0:02:28]} Rad8 {[%emt 0:00:00]} 12. Nh4 {[%emt 0:02:52]} g6 {[%emt 0:00:00]} 13. Rc2 {[%emt 0:02:07]} Ba8 {[%emt 0:00:00]} 14. cxd5 {[%emt 0:10:02]} exd5 {[%emt 0:00:00]} 15. Qc1 {[%emt 0:01:30]} Rfe8 {[%emt 0:00:00]} 16. Ne2 {[%emt 0:02:38]} Bb7 {[%emt 0:00:00]} 17. Nf4 {[%emt 0:05:37]} a5 {[%emt 0:00:00]} 18. Nf3 {[%emt 0:03:35]} Ne4 {[%emt 0:00:00]} 19. Rd1 {[%emt 0:03:32]} c6 {[%emt 0:05:30]} 20. Nd3 {[%emt 0:02:14]} f6 {[%emt 0:00:00] Prevents Nfe5.} 21. Nh4 {[%emt 0:06:54]} Nb8 {[%emt 0:00:00]} 22. Nf3 {[%emt 0:07:46][%cal Bh4f3,Bf3e1,Be1d3,Bd3f2][%mdl 32]} Ba6 {[%emt 0:00:00]} 23. Bf1 {[%emt 0:03:46]} Bc8 {[%emt 0:00:00]} 24. Bg2 {[%emt 0:02:18]} (24. Re1 $11) 24... Ba6 {[%emt 0:00:00]} (24... h5 $15) 25. Nfe1 $11 {[%emt 0:01:48]} Bc8 {[%emt 0:01:30]} 26. Nf4 {[%emt 0:00:45]} (26. Re2 $14) 26... Bd7 {[%emt 0:02:36]} 27. Ned3 {[%emt 0:01:04]} Qf7 {[%emt 0:02:14]} 28. Ba3 {[%emt 0:16:46]} (28. f3 $14 Ng5 29. Nf2) 28... Qe7 {[%emt 0:01:05]} 29. Bxd6 {[%emt 0:00:16]} Qxd6 {[%emt 0:01:20]} 30. f3 {[%emt 0:01:43] White is slightly better.} Ng5 {[%emt 0:00:02]} 31. Nf2 {[%emt 0:00:08]} Na6 {[%emt 0:01:18]} 32. e4 {[%emt 0:00:44]} Nf7 {[%emt 0:00:32] Weighted Error Value: White=0.12 (very precise) /Black=0.12 (very precise) .  Mistake:       	White=3     	Black=1      Inaccurate:     	---       	Black=4      OK:         	White=15    	Black=10} *

[Event "Serbian-ch Semifinal 2024"]
[Site "Paracin"]
[Date "2024.02.07"]
[Round "4.5"]
[White "Bryakin, Mikhail"]
[Black "Tadic, Stefan"]
[Result "*"]
[ECO "D11"]
[WhiteElo "2479"]
[BlackElo "2390"]
[Annotator "TA"]
[PlyCount "80"]
[EventDate "2024.02.04"]
[EventType "swiss"]
[EventCountry "SRB"]
[SourceTitle "playchess.com"]
[Source "ChessBase"]
[SourceQuality "1"]
[TimeControl "40/5400+30:1800+30"]

{[%evp 9,80,0,10,13,12,17,7,0,0,-2,16,0,16,6,0,0,7,-5,14,20,18,15,16,26,25,20,15,24,29,0,0,-13,-6,-50,-21,-35,-31,-19,0,0,0,-22,2,0,0,-28,0,-64,-8,-20,-10,-47,-58,-54,0,0,0,-61,-52,-105,-79,-75,-68,-69,-36,-30,0,0,0,0,0,0,23]} 1. d4 {[%emt 1:31:00]} d5 {[%emt 0:00:08]} 2. c4 {[%emt 0:00:11]} c6 {[%emt 1:31:22][%cal Bc7c6,Bc6c5][%mdl 32]} 3. Nf3 {[%emt 0:00:08]} Nf6 {[%emt 1:31:28]} 4. Qb3 {[%emt 0:00:05]} e6 {[%emt 0:04:04]} 5. g3 {[%emt 0:01:07]} c5 {[%emt 0:00:05]} 6. Bg2 {[%emt 0:02:13]} Nc6 {[%emt 0:02:57]} 7. cxd5 {[%emt 0:02:00]} Qxd5 {[%emt 0:03:19]} 8. Qxd5 {[%emt 0:02:05]} Nxd5 {[%emt 0:09:48]} 9. dxc5 {[%emt 0:01:22]} Bxc5 {[%emt 0:00:14]} 10. Bd2 {[%emt 0:08:41]} O-O {[%emt 0:06:32]} 11. Nc3 {[%emt 0:01:03]} Nxc3 {[%emt 0:00:10]} 12. Bxc3 {[%emt 0:00:13]} f6 {[%emt 0:00:10]} 13. Nd2 {[%emt 0:04:04][%cal Bf3d2,Bd2e4,Be4g3][%mdl 32]} e5 {[%emt 0:06:33]} 14. Bd5+ {[%emt 0:01:02]} Kh8 {[%emt 0:00:08]} 15. Ne4 {[%emt 0:02:33]} Be7 {[%emt 0:03:18]} 16. O-O-O {[%emt 0:03:41]} Bf5 {[%emt 0:04:13]} 17. f3 {[%emt 0:02:32]} Rfd8 {[%emt 0:02:10][%cal Oc6d4]} 18. g4 {[%emt 0:01:16]} Bg6 {[%emt 0:00:59][%cal Oc6d4]} 19. Ng3 {[%emt 0:19:17]} Bc5 {[%emt 0:09:00] [#] Hoping for ...Be3+.} 20. e4 {[%emt 0:04:38]} Nd4 {[%emt 0:07:31]} 21. Bxb7 {[%emt 0:19:45] aiming for Bxd4.} Rab8 {[%emt 0:00:19]} 22. Bd5 {[%emt 0:21:17]} Nxf3 {[%emt 0:07:34]} 23. Nf5 {[%emt 0:00:22] Inhibits Be3+.} Bxf5 {[%emt 0:03:10]} 24. gxf5 {[%emt 0:01:01]} Nd4 {[%emt 0:00:09]} 25. Kb1 {[%emt 0:02:16]} Rd6 {[%emt 0:08:31]} 26. h4 {[%emt 0:02:41]} Ne2 {[%emt 0:02:51]} 27. Kc2 {[%emt 0:01:32]} Nd4+ {[%emt 0:03:42]} 28. Kd3 {[%emt 0:14:24]} (28. Kb1 $11) 28... g6 {[%emt 0:05:13]} (28... Nxf5 $1 $15 29. exf5 (29. Kc4 $2 Rc8 $17) 29... Rxd5+ 30. Kc2 Bd4) 29. fxg6 $11 {[%emt 0:01:24]} hxg6 {[%emt 0:00:01]} 30. Rc1 {[%emt 0:08:12]} Ne6 {[%emt 0:03:07]} 31. Kc2 {[%emt 0:02:15]} Nd4+ {[%emt 0:02:00]} (31... Nf4 $15 32. Bb3 Ne2) 32. Kd3 {[%emt 0:00:06]} Ne6 {[%emt 0:00:04]} 33. Kc4 {[%emt 0:00:29]} ({Better is} 33. Kc2 $1 $11) 33... Be3 $15 {[%emt 0:05:23]} 34. Rce1 {[%emt 0:00:24]} (34. Rcd1 $15) 34... Bf2 {[%emt 0:00:56]} 35. Ref1 {[%emt 0:00:31]} Rc8+ {[%emt 0:00:01]} 36. Kb3 {[%emt 0:00:56]} Nd4+ {[%emt 0:00:20]} 37. Ka4 {[%emt 0:00:49]} Ra6+ {[%emt 0:01:36]} 38. Ba5 {[%emt 0:00:24] A strong pair of Bishops. The position is equal.} Be3 {[%emt 0:01:55] [#] ...Bd2 would now be deadly.} 39. b4 {[%emt 0:00:28]} Rd6 {[%emt 0:00:41]} 40. Rh3 {[%emt 0:00:29]} Bf4 {[%emt 0:00:31] Weighted Error Value: White=0.15 (very precise) /Black=0.11 (very precise) .  Mistake:       	White=3     	Black=2      Inaccurate:     	White=4     	Black=3      OK:         	White=14    	Black=15     Best:        	White=1     	Black=3} *

[Event "Serbian-ch Semifinal 2024"]
[Site "Paracin"]
[Date "2024.02.07"]
[Round "4.6"]
[White "Arsovic, Zoran"]
[Black "Nestorovic, Nikola"]
[Result "1/2-1/2"]
[ECO "A07"]
[WhiteElo "2362"]
[BlackElo "2465"]
[Annotator "TA"]
[PlyCount "63"]
[EventDate "2024.02.04"]
[EventType "swiss"]
[EventCountry "SRB"]
[SourceTitle "playchess.com"]
[Source "ChessBase"]
[SourceQuality "1"]
[TimeControl "40/5400+30:1800+30"]

{[%evp 9,63,4,12,-7,4,-1,-5,7,10,17,16,21,19,30,29,29,71,71,81,70,90,78,83,78,81,79,68,90,106,102,118,85,116,3,1,0,0,0,0,0,0,0,0,0,0,0,0,0,0,0,0,0,0,0,0,0]} 1. Nf3 {[%emt 0:00:07]} d5 {[%emt 0:00:06]} 2. g3 {[%emt 0:00:26]} g6 {[%emt 0:00:16]} 3. Bg2 {[%emt 0:00:42]} Bg7 {[%emt 0:00:08]} 4. O-O {[%emt 0:00:33]} e5 {[%emt 0:00:24]} 5. d3 {[%emt 0:00:46]} Nc6 {[%emt 0:00:08]} 6. Nc3 {[%emt 0:01:08]} Nge7 {[%emt 0:00:57]} 7. e4 {[%emt 0:00:49]} d4 {[%emt 0:00:06]} 8. Ne2 {[%emt 0:00:49]} a5 {[%emt 0:01:19]} 9. c3 {[%emt 0:02:35]} a4 {[%emt 0:01:29]} 10. cxd4 {[%emt 0:01:20]} Nxd4 {[%emt 0:00:38]} 11. Nexd4 {[%emt 0:01:32]} exd4 {[%emt 0:00:05]} 12. Bd2 {[%emt 0:05:47]} h6 {[%emt 0:05:14]} 13. Nh4 {[%emt 0:16:12]} Bf6 {[%emt 0:31:06]} 14. f4 {[%emt 0:05:46]} Bxh4 {[%emt 0:00:04]} 15. gxh4 {[%emt 0:00:08]} Ra6 {[%emt 0:00:24]} 16. b4 {[%emt 0:09:37]} axb3 {[%emt 0:07:37]} 17. axb3 {[%emt 0:00:08]} Rxa1 {[%emt 0:07:02]} 18. Qxa1 {[%emt 0:00:18]} f5 {[%emt 0:00:47]} 19. Rc1 {[%emt 0:23:10]} O-O {[%emt 0:02:04]} 20. Qa5 {[%emt 0:03:06] White is more active.} b6 {[%emt 0:11:06] [#]} 21. Qe5 {[%emt 0:06:53]} (21. Qb5 $1 $16 {[%cal Rb5c4] aiming for Qc4+.} Kh7 22. Qc4) 21... c5 $1 $11 {[%emt 0:00:02] The position is equal.} 22. b4 {[%emt 0:07:52]} Nc6 $36 {[%emt 0:13:43][%csl LRb4,LRe5,LRh4][%mdl 2048] Black is pushing.} 23. Qd5+ {[%emt 0:00:08]} Qxd5 {[%emt 0:00:04]} 24. exd5 {[%emt 0:00:03]} Nxb4 {[%emt 0:00:05]} 25. Bxb4 {[%emt 0:00:05]} cxb4 {[%emt 0:00:03][%mdl 4096] Endgame. KRB-KRB} 26. Rc6 {[%emt 0:03:27]} b5 {[%emt 0:00:21]} 27. d6 {[%emt 0:02:43]} (27. Rxg6+ Kf7 28. Rc6 Bd7 $19 (28... b3 $2 29. Rc1 $19)) 27... Be6 {[%emt 0:04:45] [#] Dodges Bd5. And now ...b3 would win.} 28. Rb6 {[%emt 0:00:23]} b3 {[%emt 0:07:29] Strongly threatening ...Rd8.} 29. Rxb5 {[%emt 0:00:12]} Kf7 {[%emt 0:01:59]} 30. Rb7+ {[%emt 0:01:04]} Kf6 {[%emt 0:00:07]} 31. Rb6 {[%emt 0:00:26]} Rd8 {[%emt 0:02:06]} 32. Bf3 {[%emt 0:01:08] Weighted Error Value: White=0.12 (very precise) /Black=0.05 (flawless) .  Mistake:       	White=1     	---        Inaccurate:     	---       	Black=2      OK:         	White=15    	Black=7      Best:        	---       	Black=3      Strong:       	---       	Black=1} 1/2-1/2

[Event "Serbian-ch Semifinal 2024"]
[Site "Paracin"]
[Date "2024.02.07"]
[Round "4.8"]
[White "Eric, Jovana"]
[Black "Atalik, Suat"]
[Result "*"]
[ECO "B67"]
[WhiteElo "2124"]
[BlackElo "2439"]
[Annotator "TA"]
[PlyCount "81"]
[EventDate "2024.02.04"]
[EventType "swiss"]
[EventCountry "SRB"]
[SourceTitle "playchess.com"]
[Source "ChessBase"]
[SourceQuality "1"]
[TimeControl "40/5400+30:1800+30"]

{[%evp 16,81,31,23,35,14,36,7,15,16,25,6,55,0,17,25,25,19,29,-30,-28,-27,-25,-37,-41,-50,-49,-54,-54,-58,-41,-62,-57,-70,-73,-73,-70,-70,-67,-71,-68,-64,-63,-77,-79,-75,-72,-64,-77,-146,-152,-192,-152,-147,-144,-197,-187,-198,-205,-205,-205,-217,-217,-208,-213,-211,-206,-183]} 1. e4 {[%emt 0:00:03]} c5 {[%emt 0:00:20]} 2. Nf3 {[%emt 0:00:16]} Nc6 {[%emt 0:00:26]} 3. d4 {[%emt 0:00:20]} cxd4 {[%emt 0:00:09]} 4. Nxd4 {[%emt 0:00:05]} Nf6 {[%emt 0:00:35]} 5. Nc3 {[%emt 0:00:08]} d6 {[%emt 0:00:35]} 6. Bg5 {[%emt 0:00:33]} e6 {[%emt 0:01:17]} 7. Qd2 {[%emt 0:00:56]} a6 {[%emt 0:00:35]} 8. O-O-O {[%emt 0:00:39]} Bd7 {[%emt 0:00:25]} 9. Kb1 {[%emt 0:02:29]} Nxd4 {[%emt 0:06:07]} 10. Qxd4 {[%emt 0:00:06]} Be7 {[%emt 0:01:39]} 11. Rg1 {[%emt 0:05:53]} Bc6 {[%emt 0:08:12] The position is equal.} (11... O-O $5) 12. g4 {[%emt 0:06:07]} h6 {[%emt 0:14:15]} 13. Be3 {[%emt 0:03:23]} Qa5 {[%emt 0:06:03]} (13... d5 $11 {is superior.}) 14. Be2 {[%emt 0:15:59]} (14. h4 $14) 14... Qe5 {[%emt 0:01:25]} (14... b5 $5) 15. f3 {[%emt 0:12:26]} Qxd4 $1 {[%emt 0:55:57]} 16. Bxd4 {[%emt 0:00:05]} g5 {[%emt 0:08:57]} 17. e5 {[%emt 0:49:32]} (17. a3 $142) 17... dxe5 $11 {[%emt 0:00:16]} 18. Bxe5 {[%emt 0:00:04][%cal Oc3e4]} O-O {[%emt 0:00:47]} 19. Rgf1 {[%emt 0:07:37]} Rfd8 {[%emt 0:06:47]} 20. Bc7 {[%emt 0:04:57]} Rxd1+ {[%emt 0:01:04]} 21. Rxd1 {[%emt 0:00:41]} Bb4 {[%emt 0:40:17]} 22. Be5 {[%emt 0:31:19][%cal Bc7e5,Be5d4,Bd4e3][%mdl 32]} Nd7 {[%emt 0:01:31]} 23. Bd4 {[%emt 0:04:43]} e5 {[%emt 0:01:39]} 24. Be3 {[%emt 0:25:47][%cal Od1d7]} Bxc3 {[%emt 0:00:30]} 25. bxc3 {[%emt 0:00:04][%cal Oh2h4]} Nf8 {[%emt 0:01:14]} 26. Rd6 {[%emt 0:04:00]} Kg7 {[%emt 0:35:09]} 27. Bb6 {[%emt 0:03:27]} Rc8 {[%emt 0:07:16]} 28. Kc1 {[%emt 0:01:03]} Ne6 {[%emt 0:04:16]} 29. Kd2 {[%emt 0:00:25]} Kf6 {[%emt 0:00:56]} 30. Ba5 {[%emt 0:01:34]} Rh8 {[%emt 0:05:12]} 31. Ke3 {[%emt 0:02:55]} h5 {[%emt 0:00:51] ...hxg4 is the strong threat.} 32. gxh5 {[%emt 0:05:33]} ({White should play} 32. h3) 32... Rxh5 $17 {[%emt 0:00:07][%cal Oh5h3] Black is clearly better.} 33. Bxa6 {[%emt 0:03:25]} e4 {[%emt 0:03:03]} 34. Bc4 {[%emt 0:02:56]} exf3 {[%emt 0:01:48]} 35. Bxe6 {[%emt 0:00:32]} (35. Rd2 $17) 35... fxe6 {[%emt 0:00:06][%mdl 4096] Endgame. KRB-KRB} 36. Bd8+ {[%emt 0:00:06]} Kf5 {[%emt 0:00:36]} 37. Rd2 {[%emt 0:00:13]} Rh4 {[%emt 0:01:50]} 38. Bc7 {[%emt 0:02:29]} Rc4 {[%emt 0:01:04]} ({Don't play} 38... e5 39. Bb6 $19) 39. Ba5 {[%emt 0:00:18]} e5 {[%emt 0:01:06]} 40. Bb4 {[%emt 0:01:09]} Kg4 {[%emt 0:02:57]} 41. Kf2 {[%emt 0:06:57] Weighted Error Value: White=0.17 (very precise) /Black=0.06 (flawless) .  Mistake:       	White=4     	Black=1      Inaccurate:     	White=1     	---        OK:         	White=7     	Black=17     Best:        	White=1     	Black=3      Strong:       	---       	Black=1} *

[Event "Serbian-ch Semifinal 2024"]
[Site "Paracin"]
[Date "2024.02.07"]
[Round "4.10"]
[White "Rabrenovic, Vladan"]
[Black "Injac, Teodora"]
[Result "0-1"]
[ECO "E20"]
[WhiteElo "2199"]
[BlackElo "2439"]
[Annotator "TA"]
[PlyCount "72"]
[EventDate "2024.02.04"]
[EventType "swiss"]
[EventCountry "SRB"]
[SourceTitle "playchess.com"]
[Source "ChessBase"]
[SourceQuality "1"]
[TimeControl "40/5400+30:1800+30"]

{[%evp 15,72,0,0,-20,-6,-1,-4,-13,-14,-62,-72,-55,-60,-53,-50,-66,-32,-30,0,-16,0,0,6,7,0,0,-8,-20,-26,-54,-55,-136,-128,-137,-133,-129,-145,-140,-149,-185,-183,-186,-175,-263,-247,-291,-257,-353,-368,-336,-336,-439,-447,-475,-482,-533,-535,-612,-589]} 1. d4 {[%emt 0:04:05]} Nf6 {[%emt 0:00:07]} 2. c4 {[%emt 0:00:58]} e6 {[%emt 0:00:24]} 3. Nc3 {[%emt 0:00:55]} Bb4 {[%emt 0:00:26]} 4. g3 {[%emt 0:00:05]} Bxc3+ {[%emt 0:00:58]} 5. bxc3 {[%emt 0:00:28]} d6 {[%emt 0:01:29]} 6. Bg2 {[%emt 0:00:23]} O-O {[%emt 0:00:41]} 7. Nf3 {[%emt 0:00:08]} Nc6 {[%emt 0:00:53]} 8. O-O {[%emt 0:00:58]} e5 {[%emt 0:02:23]} 9. Bg5 {[%emt 0:08:17]} h6 {[%emt 0:02:50]} 10. Bxf6 {[%emt 0:01:55]} Qxf6 {[%emt 0:00:04]} 11. Rb1 {[%emt 0:00:31] The position is equal.} Rb8 {[%emt 0:04:21]} 12. Ne1 {[%emt 0:16:56]} (12. Nd2 $11 Bd7 13. Nb3) 12... Na5 $15 {[%emt 0:04:20]} 13. Qd3 {[%emt 0:00:17]} b6 {[%emt 0:08:30]} 14. Nc2 {[%emt 0:00:10]} Ba6 {[%emt 0:01:47]} 15. Ne3 {[%emt 0:00:14]} c6 {[%emt 0:04:40]} 16. d5 {[%emt 0:00:33]} c5 {[%emt 0:00:27]} (16... cxd5 {seems wilder.} 17. Bxd5 Bc8 18. Rfd1 Bh3) 17. f4 {[%emt 0:07:04]} e4 {[%emt 0:23:36]} 18. Bxe4 {[%emt 0:05:27]} Rfe8 {[%emt 0:00:10] [#] Strongly threatening ...Qe7.} 19. Bf3 {[%emt 0:01:39]} Qd8 {[%emt 0:05:27]} 20. Rf2 {[%emt 0:27:17]} Qd7 {[%emt 0:05:55]} 21. g4 {[%emt 0:07:24]} Qa4 {[%emt 0:11:11][%cal Ra5c4]} 22. g5 {[%emt 0:00:02] Black must now prevent gxh6.} hxg5 {[%emt 0:02:24]} 23. Rg2 {[%emt 0:07:46]} (23. fxg5 $15 Nxc4 24. Nxc4 Bxc4 25. Qd2) 23... Nxc4 {[%emt 0:02:01] Black is more active.} (23... Bxc4 24. Nxc4 Qxc4 (24... Nxc4 25. Rxg5 Ne3 26. Kh1 $15) 25. fxg5 Qxd3 26. exd3 $15) 24. Nxc4 {[%emt 0:01:19]} Qxc4 {[%emt 0:00:06]} (24... Bxc4 25. Qf5 Qxa2 26. Rxg5 Bxe2 27. Rg2) 25. Qxc4 {[%emt 0:00:49]} Bxc4 {[%emt 0:00:04]} 26. fxg5 {[%emt 0:00:09]} Re3 {[%emt 0:03:59]} (26... Bxa2 27. Ra1 Bc4 28. Rxa7 $11) 27. Rc1 {[%emt 0:01:53]} Rbe8 $1 {[%emt 0:02:13][%cal Rc4e2]} ({Don't do} 27... Bxa2 28. Ra1 Bc4 29. Rxa7 $17) 28. Rc2 {[%emt 0:00:02] [#]} Bd3 $1 {[%emt 0:06:15]} 29. Rd2 {[%emt 0:02:16]} (29. exd3 {keeps fighting.} Rxf3 30. Rge2 Rxe2 31. Rxe2) 29... Bf5 $19 {[%emt 0:00:46]} 30. Kf2 {[%emt 0:02:06]} Rxc3 {[%emt 0:00:15]} 31. h4 {[%emt 0:00:17]} b5 {[%emt 0:00:35]} 32. h5 {[%emt 0:00:18]} b4 {[%emt 0:00:32]} 33. h6 {[%emt 0:00:16]} Bg6 {[%emt 0:00:52] Black is clearly winning.} 34. Rh2 {[%emt 0:00:32]} Re5 {[%emt 0:01:14]} 35. hxg7 {[%emt 0:00:22]} Kxg7 {[%emt 0:00:28]} 36. Rg2 {[%emt 0:00:06]} a5 {[%emt 0:00:13] Weighted Error Value: White=0.28 (precise) /Black=0.04 (flawless) .  Mistake:       	White=3     	---        Inaccurate:     	White=3     	Black=1      OK:         	White=8     	Black=13     Best:        	---       	Black=1      Strong:       	---       	Black=2} 0-1

[Event "Serbian-ch Semifinal 2024"]
[Site "Paracin"]
[Date "2024.02.07"]
[Round "4.11"]
[White "Milosevic, Milos"]
[Black "Jocev, Milan"]
[Result "1/2-1/2"]
[ECO "A24"]
[WhiteElo "2388"]
[BlackElo "2376"]
[Annotator "TA"]
[PlyCount "39"]
[EventDate "2024.02.04"]
[EventType "swiss"]
[EventCountry "SRB"]
[SourceTitle "playchess.com"]
[Source "ChessBase"]
[SourceQuality "1"]
[TimeControl "40/5400+30:1800+30"]

{[%evp 17,39,0,0,0,24,18,24,11,24,-9,-13,-18,-9,-28,-30,-28,-24,-41,-36,-62,-60,-52,-54,-62]} 1. g3 {[%emt 0:07:31]} g6 {[%emt 0:00:06]} 2. Bg2 {[%emt 0:00:26]} Bg7 {[%emt 0:00:15]} 3. c4 {[%emt 0:02:35]} Nf6 {[%emt 0:00:52]} 4. Nc3 {[%emt 0:00:40]} O-O {[%emt 0:00:42]} 5. Nf3 {[%emt 0:02:16]} d6 {[%emt 0:00:20]} 6. O-O {[%emt 0:01:01]} c6 {[%emt 0:05:35]} 7. d3 {[%emt 0:04:29]} e5 {[%emt 0:03:17]} 8. Rb1 {[%emt 0:00:42]} a5 {[%emt 0:11:34]} 9. a3 {[%emt 0:01:38]} Re8 {[%emt 0:00:42]} 10. e4 {[%emt 0:00:36]} h6 {[%emt 0:02:56]} 11. b4 {[%emt 0:01:07]} axb4 {[%emt 0:06:31]} 12. axb4 {[%emt 0:00:27] White has an edge.} Be6 {[%emt 0:00:26]} 13. b5 {[%emt 0:00:43]} Nbd7 {[%emt 0:01:23]} 14. Ne1 {[%emt 0:01:49]} Nc5 {[%emt 0:02:31]} 15. bxc6 {[%emt 0:00:19]} bxc6 {[%emt 0:00:08]} 16. Be3 {[%emt 0:00:08]} Qa5 {[%emt 0:09:02]} 17. Bd2 {[%emt 0:05:52]} Qa7 {[%emt 0:01:35] Black is slightly better.} 18. h3 {[%emt 0:08:08]} Qd7 {[%emt 0:06:47]} 19. Kh2 {[%emt 0:00:23]} d5 {[%emt 0:00:18]} 20. exd5 {[%emt 0:08:08] Weighted Error Value: White=0.11 (very precise) /Black=0.04 (flawless) .  Inaccurate:     	White=2     	---        OK:         	White=2     	Black=6} 1/2-1/2